[Event "Krakow Championship-B 2022"]
[Site "Krakow"]
[Date "2022.06.28"]
[Round "5.7"]
[White "Duncan, Patrick C M"]
[Black "Palacki, Rafal"]
[Result "1-0"]
[ECO "A01"]
[WhiteElo "2013"]
[BlackElo "1810"]
[Annotator "NA RC"]
[PlyCount "85"]
[EventDate "2022.06.25"]
[EventType "swiss"]
[EventCountry "POL"]
[SourceTitle "playchess.com"]
[Source "ChessBase"]
[SourceQuality "1"]
[TimeControl "40/5400+30:1800+30"]

1. b3 {[%emt 0:00:03]} e5 {[%emt 0:00:36]} 2. Bb2 {[%emt 0:00:08]} Nc6 {[%emt 0:00:05]} 3. e3 {[%emt 0:00:15]} Nf6 {[%emt 0:00:31]} 4. Nf3 {[%emt 0:00:22]} e4 {[%emt 0:01:04]} 5. Nd4 {[%emt 0:00:07]} Bc5 {[%emt 0:00:49]} 6. Nxc6 {[%emt 0:00:44]} dxc6 {[%emt 0:00:05]} 7. d3 {[%emt 0:01:04]} exd3 {[%emt 0:01:39]} 8. Bxd3 {[%emt 0:01:13]} Bg4 {[%emt 0:01:02]} 9. Be2 {[%emt 0:01:31]} Bxe2 {[%emt 0:02:24]} 10. Qxd8+ {[%emt 0:05:47]} Rxd8 {[%emt 0:00:30]} 11. Kxe2 {[%emt 0:00:43]} Nd5 {[%emt 0:06:02]} 12. a3 {[%emt 0:05:08]} O-O {[%emt 0:06:11]} 13. c4 {[%emt 0:05:20]} Nf4+ {[%emt 0:23:54]} 14. Kf3 {[%emt 0:23:55]} Nd3 {[%emt 0:06:39]} 15. Bc3 {[%emt 0:04:17]} Rfe8 {[%emt 0:04:58]} 16. Rd1 {[%emt 0:05:19]} Ne5+ {[%emt 0:12:37]} 17. Ke2 {[%emt 0:00:10]} Rxd1 {[%emt 0:00:05]} 18. Kxd1 {[%emt 0:00:08]} Ng4 {[%emt 0:00:36]} 19. Ke2 {[%emt 0:01:58]} f5 {[%emt 0:16:42]} 20. h3 {[%emt 0:05:20]} Ne5 {[%emt 0:01:15]} 21. Bxe5 {[%emt 0:12:15]} Rxe5 {[%emt 0:00:03]} 22. Kf3 {[%emt 0:00:29]} a5 {[%emt 0:01:52]} 23. Ra2 {[%emt 0:03:03]} Kf7 {[%emt 0:00:23]} 24. Rb2 {[%emt 0:01:39]} Be7 {[%emt 0:00:47]} 25. a4 {[%emt 0:04:49]} h5 {[%emt 0:04:10]} 26. Nc3 {[%emt 0:00:46]} g5 {[%emt 0:01:37]} 27. g4 {[%emt 0:01:58]} fxg4+ {[%emt 0:00:20]} 28. hxg4 {[%emt 0:00:13]} h4 {[%emt 0:00:08]} 29. Ne2 {[%emt 0:02:21]} Bf6 {[%emt 0:01:37]} 30. Rd2 {[%emt 0:00:34]} Re7 {[%emt 0:01:37]} 31. Rd3 {[%emt 0:01:12]} Ke8 {[%emt 0:01:25]} 32. Ng1 {[%emt 0:00:57]} Rd7 {[%emt 0:02:09]} 33. Rxd7 {[%emt 0:01:02]} Kxd7 {[%emt 0:00:02]} 34. Ke4 {[%emt 0:00:42]} Ke6 {[%emt 0:00:20]} 35. f4 {[%emt 0:00:55]} Be7 {[%emt 0:00:30]} 36. Nh3 {[%emt 0:01:00]} gxf4 {[%emt 0:00:16]} 37. exf4 {[%emt 0:00:27]} Bd6 {[%emt 0:01:18]} 38. f5+ {[%emt 0:05:12]} Kf7 {[%emt 0:01:00]} 39. g5 {[%emt 0:00:25]} Ba3 {[%emt 0:00:31]} 40. Kf3 {[%emt 0:00:46]} Bb4 {[%emt 0:00:35]} 41. Kg4 {[%emt 0:30:41]} Be1 {[%emt 0:30:09]} 42. Ng1 {[%emt 0:01:55]} Kg7 {[%emt 0:00:00]} 43. Nf3 {[%emt 0:00:00]} 1-0

[Event "Krakow Championship-B 2022"]
[Site "Krakow"]
[Date "2022.06.28"]
[Round "5.8"]
[White "Maciejewski, Kamil"]
[Black "Szopa, Emilia"]
[Result "1/2-1/2"]
[ECO "A37"]
[WhiteElo "1939"]
[BlackElo "1839"]
[Annotator "NA RC"]
[PlyCount "141"]
[EventDate "2022.06.25"]
[EventType "swiss"]
[EventCountry "POL"]
[SourceTitle "playchess.com"]
[Source "ChessBase"]
[SourceQuality "1"]
[TimeControl "40/5400+30:1800+30"]

1. Nf3 {[%emt 0:00:04]} c5 {[%emt 0:01:01]} 2. g3 {[%emt 0:00:12]} Nc6 {[%emt 0:00:15]} 3. Bg2 {[%emt 0:00:10]} g6 {[%emt 0:02:03]} 4. c4 {[%emt 0:00:29]} Bg7 {[%emt 0:00:15]} 5. Nc3 {[%emt 0:00:21]} e5 {[%emt 0:02:25]} 6. O-O {[%emt 0:00:36]} Nge7 {[%emt 0:02:19]} 7. Ne1 {[%emt 0:04:36]} O-O {[%emt 0:02:39]} 8. Nc2 {[%emt 0:00:51]} a6 {[%emt 0:03:29]} 9. a3 {[%emt 0:11:19]} Nd4 {[%emt 0:11:44]} 10. b4 {[%emt 0:11:22]} Qc7 {[%emt 0:13:01]} 11. Ne3 {[%emt 0:06:46]} cxb4 {[%emt 0:11:40]} 12. axb4 {[%emt 0:05:35]} Rb8 {[%emt 0:04:51]} 13. d3 {[%emt 0:04:59]} d6 {[%emt 0:04:07]} 14. Ned5 {[%emt 0:03:38]} Nxd5 {[%emt 0:01:45]} 15. Nxd5 {[%emt 0:00:20]} Qd8 {[%emt 0:00:44]} 16. e3 {[%emt 0:04:53]} Ne6 {[%emt 0:03:35]} 17. Bb2 {[%emt 0:03:54]} Nc7 {[%emt 0:02:26]} 18. Qd2 {[%emt 0:09:01]} Be6 {[%emt 0:06:04]} 19. Nxc7 {[%emt 0:02:58]} Qxc7 {[%emt 0:01:29]} 20. Rfc1 {[%emt 0:02:28]} Rfc8 {[%emt 0:04:27]} 21. Ra5 {[%emt 0:02:30]} Qd7 {[%emt 0:01:25]} 22. b5 {[%emt 0:04:18]} axb5 {[%emt 0:01:12]} 23. Rxb5 {[%emt 0:01:09]} Rc5 {[%emt 0:01:32]} 24. Rb6 {[%emt 0:03:12]} Qc7 {[%emt 0:06:15]} 25. Qb4 {[%emt 0:01:51]} d5 {[%emt 0:00:48]} 26. Ba3 {[%emt 0:01:56]} Bf8 {[%emt 0:00:28]} 27. Qb2 {[%emt 0:01:55]} Rc6 {[%emt 0:00:22]} 28. Rb5 {[%emt 0:01:10]} Bxa3 {[%emt 0:02:12]} 29. Qxa3 {[%emt 0:00:08]} e4 {[%emt 0:02:03]} 30. Rcb1 {[%emt 0:04:28]} exd3 {[%emt 0:03:12]} 31. cxd5 {[%emt 0:01:20]} Rc3 {[%emt 0:00:18]} 32. R5b3 {[%emt 0:01:18]} Rxb3 {[%emt 0:01:23]} 33. Qxb3 {[%emt 0:00:07]} Bf5 {[%emt 0:03:08]} 34. e4 {[%emt 0:00:25]} d2 {[%emt 0:01:07]} 35. Qd1 {[%emt 0:03:46]} Bg4 {[%emt 0:00:26]} 36. Qxd2 {[%emt 0:00:42]} b5 {[%emt 0:00:28]} 37. h3 {[%emt 0:00:56]} Bd7 {[%emt 0:00:11]} 38. d6 {[%emt 0:02:45]} Qb6 {[%emt 0:00:17]} 39. e5 {[%emt 0:00:43]} b4 {[%emt 0:00:36]} 40. Bd5 {[%emt 0:00:46]} Bxh3 {[%emt 0:01:16]} 41. Qf4 {[%emt 0:11:21]} Bf5 {[%emt 0:07:38]} 42. g4 {[%emt 0:03:02]} Be6 {[%emt 0:00:13]} 43. Bxe6 {[%emt 0:01:40]} fxe6 {[%emt 0:00:18]} 44. Qf6 {[%emt 0:02:01]} Re8 {[%emt 0:00:29]} 45. Rd1 {[%emt 0:05:43]} Rf8 {[%emt 0:05:18]} 46. Qxe6+ {[%emt 0:00:29]} Kg7 {[%emt 0:01:29]} 47. Rd2 {[%emt 0:02:11]} b3 {[%emt 0:00:56]} 48. Rb2 {[%emt 0:01:29]} Qd4 {[%emt 0:00:37]} 49. Qxb3 {[%emt 0:01:09]} Qxe5 {[%emt 0:01:45]} 50. Qb7+ {[%emt 0:01:26]} Rf7 {[%emt 0:00:45]} 51. Qb6 {[%emt 0:03:39]} Rd7 {[%emt 0:07:18]} 52. Rb1 {[%emt 0:01:38]} Rxd6 {[%emt 0:01:06]} 53. Qc7+ {[%emt 0:00:35]} Kh6 {[%emt 0:02:02]} 54. Qc1+ {[%emt 0:00:16]} Qg5 {[%emt 0:00:28]} 55. Qc4 {[%emt 0:00:46]} Qd5 {[%emt 0:01:52]} 56. Qf4+ {[%emt 0:00:22]} Kg7 {[%emt 0:00:21]} 57. Re1 {[%emt 0:00:43]} Rf6 {[%emt 0:01:36]} 58. Qc7+ {[%emt 0:00:30]} Rf7 {[%emt 0:00:07]} 59. Qc3+ {[%emt 0:00:06]} Kh6 {[%emt 0:00:30]} 60. Qh3+ {[%emt 0:00:52]} Kg7 {[%emt 0:00:11]} 61. Qc3+ {[%emt 0:00:25]} Kh6 {[%emt 0:00:05]} 62. Qe3+ {[%emt 0:00:26]} Qg5 {[%emt 0:00:56]} 63. Qg3 {[%emt 0:00:41]} Kg7 {[%emt 0:01:30]} 64. Re5 {[%emt 0:00:31]} Qf4 {[%emt 0:00:22]} 65. Qxf4 {[%emt 0:00:26]} Rxf4 {[%emt 0:00:05]} 66. g5 {[%emt 0:00:12]} Rf5 {[%emt 0:00:50]} 67. Rxf5 {[%emt 0:00:30]} gxf5 {[%emt 0:00:06]} 68. Kg2 {[%emt 0:00:22]} Kg6 {[%emt 0:00:28]} 69. f4 {[%emt 0:00:10]} h6 {[%emt 0:00:22]} 70. gxh6 {[%emt 0:00:06]} Kxh6 {[%emt 0:00:04]} 71. Kg3 {[%emt 0:00:07]} 1/2-1/2

[Event "Krakow Championship-B 2022"]
[Site "Krakow"]
[Date "2022.06.28"]
[Round "5.9"]
[White "Budkiewicz, Magdalena"]
[Black "Cattaruzzo, Nicolo`"]
[Result "1-0"]
[ECO "B70"]
[WhiteElo "1916"]
[BlackElo "1744"]
[Annotator "NA RC"]
[PlyCount "65"]
[EventDate "2022.06.25"]
[EventType "swiss"]
[EventCountry "POL"]
[SourceTitle "playchess.com"]
[Source "ChessBase"]
[SourceQuality "1"]
[TimeControl "40/5400+30:1800+30"]

1. e4 {[%emt 0:00:03]} c5 {[%emt 0:00:45]} 2. Nf3 {[%emt 0:00:24]} d6 {[%emt 0:00:17]} 3. d4 {[%emt 0:00:15]} cxd4 {[%emt 0:00:09]} 4. Nxd4 {[%emt 0:00:08]} Nf6 {[%emt 0:00:20]} 5. Nc3 {[%emt 0:00:28]} g6 {[%emt 0:00:49]} 6. Be2 {[%emt 0:00:48]} Bg7 {[%emt 0:00:50]} 7. O-O {[%emt 0:01:17]} O-O {[%emt 0:01:48]} 8. Be3 {[%emt 0:02:26]} a6 {[%emt 0:01:21]} 9. f4 {[%emt 0:04:23]} Qc7 {[%emt 0:03:56]} 10. Bf3 {[%emt 0:04:05]} Bd7 {[%emt 0:02:37]} 11. Kh1 {[%emt 0:01:37]} Nc6 {[%emt 0:02:28]} 12. Nb3 {[%emt 0:02:53]} b5 {[%emt 0:06:23]} 13. a3 {[%emt 0:04:30]} Rac8 {[%emt 0:02:02]} 14. Qd2 {[%emt 0:00:53]} Rfd8 {[%emt 0:07:17]} 15. Nd5 {[%emt 0:09:16]} Nxd5 {[%emt 0:02:52]} 16. exd5 {[%emt 0:01:02]} Nb8 {[%emt 0:00:42]} 17. c3 {[%emt 0:01:01]} a5 {[%emt 0:06:37]} 18. Qf2 {[%emt 0:02:02]} Qc4 {[%emt 0:02:21]} 19. Nxa5 {[%emt 0:08:15]} Qd3 {[%emt 0:07:11]} 20. g4 {[%emt 0:17:50]} b4 {[%emt 0:04:53]} 21. Rfd1 {[%emt 0:02:03]} Qb5 {[%emt 0:04:29]} 22. axb4 {[%emt 0:00:29]} Be8 {[%emt 0:00:55]} 23. Bb6 {[%emt 0:06:49]} Qd7 {[%emt 0:01:57]} 24. Bxd8 {[%emt 0:05:15]} Qxd8 {[%emt 0:00:30]} 25. Nb7 {[%emt 0:03:31]} Qc7 {[%emt 0:02:00]} 26. Ra7 {[%emt 0:00:32]} Bb5 {[%emt 0:02:23]} 27. Qe3 {[%emt 0:02:28]} Re8 {[%emt 0:02:58]} 28. Na5 {[%emt 0:01:36]} Qc8 {[%emt 0:00:37]} 29. Qb6 {[%emt 0:01:39]} Ba4 {[%emt 0:04:39]} 30. Ra1 {[%emt 0:01:02]} Nd7 {[%emt 0:00:27]} 31. Qb7 {[%emt 0:00:54]} Nf6 {[%emt 0:01:30]} 32. Qxc8 {[%emt 0:00:31]} Rxc8 {[%emt 0:00:07]} 33. Rxa4 {[%emt 0:00:03]} 1-0

[Event "Krakow Championship-B 2022"]
[Site "Krakow"]
[Date "2022.06.28"]
[Round "5.10"]
[White "Garsky, Vladyslav"]
[Black "Czaplak, Lukasz"]
[Result "1-0"]
[ECO "E68"]
[WhiteElo "1860"]
[BlackElo "1905"]
[Annotator "NA RC"]
[PlyCount "51"]
[EventDate "2022.06.25"]
[EventType "swiss"]
[EventCountry "POL"]
[SourceTitle "playchess.com"]
[Source "ChessBase"]
[SourceQuality "1"]
[TimeControl "40/5400+30:1800+30"]

1. Nf3 {[%emt 0:00:20]} Nf6 {[%emt 0:00:06]} 2. g3 {[%emt 0:00:16]} g6 {[%emt 0:00:11]} 3. Bg2 {[%emt 0:00:03]} Bg7 {[%emt 0:00:03]} 4. O-O {[%emt 0:00:09]} O-O {[%emt 0:00:04]} 5. c4 {[%emt 0:00:14]} d6 {[%emt 0:01:43]} 6. d4 {[%emt 0:00:19]} Nbd7 {[%emt 0:01:31]} 7. Nc3 {[%emt 0:01:09]} e5 {[%emt 0:02:16]} 8. e4 {[%emt 0:02:35]} Re8 {[%emt 0:04:49]} 9. Re1 {[%emt 0:01:43]} exd4 {[%emt 0:01:24]} 10. Nxd4 {[%emt 0:00:06]} a5 {[%emt 0:05:10]} 11. b3 {[%emt 0:04:36]} Nc5 {[%emt 0:00:49]} 12. Bb2 {[%emt 0:00:27]} a4 {[%emt 0:10:38]} 13. Rc1 {[%emt 0:02:02]} a3 {[%emt 0:09:02]} 14. Ba1 {[%emt 0:00:22]} c6 {[%emt 0:01:27]} 15. Qd2 {[%emt 0:11:19]} Qc7 {[%emt 0:01:59]} 16. Rcd1 {[%emt 0:01:20]} Be6 {[%emt 0:11:23]} 17. h3 {[%emt 0:03:38]} Rad8 {[%emt 0:02:06]} 18. f4 {[%emt 0:02:23]} Bc8 {[%emt 0:07:34]} 19. Qf2 {[%emt 0:07:23]} Re7 {[%emt 0:03:25]} 20. b4 {[%emt 0:04:17]} Ne6 {[%emt 0:01:26]} 21. Nc2 {[%emt 0:00:33]} Nd7 {[%emt 0:03:58]} 22. Bf1 {[%emt 0:07:41]} g5 {[%emt 0:02:36]} 23. Ne3 {[%emt 0:09:00]} gxf4 {[%emt 0:02:03]} 24. gxf4 {[%emt 0:01:38]} Nd4 {[%emt 0:01:40]} 25. Ncd5 {[%emt 0:01:07]} cxd5 {[%emt 0:00:49]} 26. Nxd5 {[%emt 0:00:15]} 1-0

[Event "Krakow Championship-B 2022"]
[Site "Krakow"]
[Date "2022.06.28"]
[Round "5.12"]
[White "Karut, Kacper"]
[Black "Skytte, Robert"]
[Result "1-0"]
[ECO "B90"]
[WhiteElo "1775"]
[BlackElo "1551"]
[Annotator "NA RC"]
[PlyCount "59"]
[EventDate "2022.06.25"]
[EventType "swiss"]
[EventCountry "POL"]
[SourceTitle "playchess.com"]
[Source "ChessBase"]
[SourceQuality "1"]
[TimeControl "40/5400+30:1800+30"]

1. e4 {[%emt 0:00:02]} c5 {[%emt 0:00:09]} 2. Nf3 {[%emt 0:00:04]} d6 {[%emt 0:00:07]} 3. d4 {[%emt 0:00:15]} cxd4 {[%emt 0:00:11]} 4. Nxd4 {[%emt 0:00:10]} Nf6 {[%emt 0:00:16]} 5. Nc3 {[%emt 0:00:07]} a6 {[%emt 0:00:06]} 6. h4 {[%emt 0:01:16]} e5 {[%emt 0:02:14]} 7. Nb3 {[%emt 0:00:09]} Be6 {[%emt 0:02:54]} 8. f4 {[%emt 0:01:33]} Nbd7 {[%emt 0:06:48]} 9. f5 {[%emt 0:06:03]} Bxb3 {[%emt 0:00:08]} 10. axb3 {[%emt 0:02:23]} Nc5 {[%emt 0:01:09]} 11. Bg5 {[%emt 0:07:52]} Be7 {[%emt 0:00:22]} 12. Bxf6 {[%emt 0:02:43]} Bxf6 {[%emt 0:00:12]} 13. g3 {[%emt 0:00:47]} Be7 {[%emt 0:03:25]} 14. Bc4 {[%emt 0:07:09]} O-O {[%emt 0:00:58]} 15. Qh5 {[%emt 0:07:44]} Nd7 {[%emt 0:04:52]} 16. O-O-O {[%emt 0:04:11]} Qa5 {[%emt 0:01:29]} 17. Nd5 {[%emt 0:06:21]} Rae8 {[%emt 0:07:17]} 18. Kb1 {[%emt 0:02:22]} b5 {[%emt 0:06:10]} 19. Bd3 {[%emt 0:05:35]} Nf6 {[%emt 0:05:22]} 20. Nxf6+ {[%emt 0:06:52]} Bxf6 {[%emt 0:00:22]} 21. Qf3 {[%emt 0:00:44]} g6 {[%emt 0:02:23]} 22. g4 {[%emt 0:01:22]} g5 {[%emt 0:01:10]} 23. hxg5 {[%emt 0:07:56]} Bxg5 {[%emt 0:00:16]} 24. f6 {[%emt 0:02:34]} Bf4 {[%emt 0:07:04]} 25. Qh3 {[%emt 0:09:39]} h6 {[%emt 0:00:52]} 26. g5 {[%emt 0:00:07]} Bxg5 {[%emt 0:00:57]} 27. Rdg1 {[%emt 0:00:12]} Kh7 {[%emt 0:01:25]} 28. Rxg5 {[%emt 0:00:12]} Qa1+ {[%emt 0:00:27]} 29. Kxa1 {[%emt 0:00:09]} Rg8 {[%emt 0:00:15]} 30. Qxh6# {[%emt 0:00:10]} 1-0

[Event "Krakow Championship-B 2022"]
[Site "Krakow"]
[Date "2022.06.29"]
[Round "6.2"]
[White "Stemmler, Fabian"]
[Black "Zamekhovskiy, Yevgen"]
[Result "1-0"]
[ECO "B11"]
[WhiteElo "2054"]
[BlackElo "1926"]
[Annotator "NA RC"]
[PlyCount "101"]
[EventDate "2022.06.25"]
[EventType "swiss"]
[EventCountry "POL"]
[SourceTitle "playchess.com"]
[Source "ChessBase"]
[SourceQuality "1"]
[TimeControl "40/5400+30:1800+30"]

1. e4 {[%emt 0:00:03]} c6 {[%emt 0:03:17]} 2. Nf3 {[%emt 0:02:46]} d5 {[%emt 0:00:22]} 3. Nc3 {[%emt 0:00:09]} Bg4 {[%emt 0:02:05]} 4. h3 {[%emt 0:00:09]} Bxf3 {[%emt 0:00:47]} 5. Qxf3 {[%emt 0:00:10]} Nf6 {[%emt 0:01:06]} 6. Be2 {[%emt 0:05:06]} dxe4 {[%emt 0:13:21]} 7. Nxe4 {[%emt 0:00:33]} Nxe4 {[%emt 0:00:06]} 8. Qxe4 {[%emt 0:00:05]} Qd5 {[%emt 0:01:52]} 9. Bf3 {[%emt 0:06:47]} Qxe4+ {[%emt 0:03:18]} 10. Bxe4 {[%emt 0:02:22]} e5 {[%emt 0:01:28]} 11. O-O {[%emt 0:01:27]} Bc5 {[%emt 0:04:44]} 12. b4 {[%emt 0:17:45]} Bb6 {[%emt 0:08:32]} 13. a4 {[%emt 0:09:13]} O-O {[%emt 0:13:24]} 14. d3 {[%emt 0:12:41]} Nd7 {[%emt 0:11:42]} 15. b5 {[%emt 0:10:34]} f5 {[%emt 0:01:28]} 16. Bf3 {[%emt 0:01:59]} Nf6 {[%emt 0:00:47]} 17. Ba3 {[%emt 0:03:43]} Rf7 {[%emt 0:06:05]} 18. bxc6 {[%emt 0:02:21]} e4 {[%emt 0:00:34]} 19. cxb7 {[%emt 0:00:35]} Rxb7 {[%emt 0:00:33]} 20. Be2 {[%emt 0:02:51]} Rc7 {[%emt 0:05:36]} 21. c4 {[%emt 0:03:11]} Rd8 {[%emt 0:00:37]} 22. Rad1 {[%emt 0:01:38]} Rcd7 {[%emt 0:06:00]} 23. dxe4 {[%emt 0:04:49]} Rxd1 {[%emt 0:03:02]} 24. Rxd1 {[%emt 0:00:17]} Rxd1+ {[%emt 0:00:34]} 25. Bxd1 {[%emt 0:00:08]} Nxe4 {[%emt 0:00:11]} 26. Bf3 {[%emt 0:01:44]} Bxf2+ {[%emt 0:01:13]} 27. Kf1 {[%emt 0:00:14]} Bc5 {[%emt 0:00:18]} 28. Bc1 {[%emt 0:02:19]} Nc3 {[%emt 0:03:37]} 29. a5 {[%emt 0:01:09]} Kf7 {[%emt 0:00:40]} 30. Bb2 {[%emt 0:03:11]} Bb4 {[%emt 0:03:45]} 31. a6 {[%emt 0:00:50]} Ke6 {[%emt 0:00:28]} 32. Kf2 {[%emt 0:01:43]} f4 {[%emt 0:00:37]} 33. Bg4+ {[%emt 0:01:06]} Ke5 {[%emt 0:00:48]} 34. Kf3 {[%emt 0:00:46]} Kd4 {[%emt 0:02:25]} 35. Kxf4 {[%emt 0:01:13]} Kxc4 {[%emt 0:00:16]} 36. Ke5 {[%emt 0:01:17]} Bc5 {[%emt 0:01:10]} 37. Be6+ {[%emt 0:00:58]} Kb4 {[%emt 0:00:16]} 38. Bg8 {[%emt 0:00:32]} h6 {[%emt 0:00:07]} 39. Be6 {[%emt 0:00:37]} Bb6 {[%emt 0:00:49]} 40. Kf5 {[%emt 0:00:36]} Bd4 {[%emt 0:00:16]} 41. Bc1 {[%emt 0:30:51]} Ka5 {[%emt 0:31:37]} 42. Bc8 {[%emt 0:00:00]} Kb6 {[%emt 0:00:00]} 43. Bb2 {[%emt 0:00:00]} Kc7 {[%emt 0:00:00]} 44. Bb7 {[%emt 0:00:00]} Kd7 {[%emt 0:00:00]} 45. Kg6 {[%emt 0:00:00]} Ke6 {[%emt 0:00:00]} 46. Ba3 {[%emt 0:00:00]} Ne2 {[%emt 0:00:00]} 47. Bc8+ {[%emt 0:00:00]} Kd5 {[%emt 0:00:00]} 48. Bf8 {[%emt 0:00:00]} Nf4+ {[%emt 0:00:00]} 49. Kf7 {[%emt 0:00:00]} Nh5 {[%emt 0:00:00]} 50. Bb7+ {[%emt 0:00:00]} Kc4 {[%emt 0:00:00]} 51. Bf3 {[%emt 0:00:00]} 1-0

[Event "Krakow Championship-B 2022"]
[Site "Krakow"]
[Date "2022.06.29"]
[Round "6.3"]
[White "Owoc, Jakub"]
[Black "Hnatyshyn, Anastasiia"]
[Result "0-1"]
[ECO "B24"]
[WhiteElo "1741"]
[BlackElo "1890"]
[Annotator "NA RC"]
[PlyCount "46"]
[EventDate "2022.06.25"]
[EventType "swiss"]
[EventCountry "POL"]
[SourceTitle "playchess.com"]
[Source "ChessBase"]
[SourceQuality "1"]
[TimeControl "40/5400+30:1800+30"]

1. e4 {[%emt 0:00:04]} c5 {[%emt 0:00:06]} 2. Nc3 {[%emt 0:00:05]} Nc6 {[%emt 0:00:16]} 3. Bb5 {[%emt 0:00:06]} g6 {[%emt 0:00:49]} 4. Bxc6 {[%emt 0:00:06]} dxc6 {[%emt 0:00:14]} 5. d3 {[%emt 0:00:07]} Bg7 {[%emt 0:00:38]} 6. Be3 {[%emt 0:00:18]} b6 {[%emt 0:00:22]} 7. Qd2 {[%emt 0:00:05]} Be6 {[%emt 0:02:45]} 8. f4 {[%emt 0:02:49]} Nf6 {[%emt 0:03:52]} 9. h3 {[%emt 0:00:26]} h5 {[%emt 0:03:46]} 10. Nf3 {[%emt 0:00:12]} Qd7 {[%emt 0:08:24]} 11. O-O {[%emt 0:06:01]} h4 {[%emt 0:11:25]} 12. Bf2 {[%emt 0:10:34]} O-O-O {[%emt 0:11:48]} 13. Bxh4 {[%emt 0:04:52]} Rh5 {[%emt 0:07:00]} 14. Ne5 {[%emt 0:18:14]} Qc7 {[%emt 0:04:39]} 15. Bg3 {[%emt 0:00:04]} Rh7 {[%emt 0:07:52]} 16. Rf3 {[%emt 0:05:50]} Nh5 {[%emt 0:01:55]} 17. Bh2 {[%emt 0:00:04]} g5 {[%emt 0:00:43]} 18. Ne2 {[%emt 0:15:04]} Nxf4 {[%emt 0:04:45]} 19. Ng4 {[%emt 0:07:01]} Bxg4 {[%emt 0:01:56]} 20. Bxf4 {[%emt 0:00:17]} gxf4 {[%emt 0:01:19]} 21. hxg4 {[%emt 0:00:04]} Rdh8 {[%emt 0:02:09]} 22. Kf1 {[%emt 0:03:05]} Rh1+ {[%emt 0:00:34]} 23. Ng1 {[%emt 0:00:04]} Bd4 {[%emt 0:02:56]} 0-1

[Event "Krakow Championship-B 2022"]
[Site "Krakow"]
[Date "2022.06.29"]
[Round "6.4"]
[White "Khandhar, Kaushal"]
[Black "Kulesza, Andrzej"]
[Result "1-0"]
[ECO "A40"]
[WhiteElo "1936"]
[BlackElo "1998"]
[Annotator "NA RC"]
[PlyCount "51"]
[EventDate "2022.06.25"]
[EventType "swiss"]
[EventCountry "POL"]
[SourceTitle "playchess.com"]
[Source "ChessBase"]
[SourceQuality "1"]
[TimeControl "40/5400+30:1800+30"]

1. d4 {[%emt 0:00:09]} Nf6 {[%emt 0:00:53]} 2. c4 {[%emt 0:00:21]} e6 {[%emt 0:01:15]} 3. g3 {[%emt 0:00:33]} Bb4+ {[%emt 0:01:59]} 4. Bd2 {[%emt 0:01:38]} a5 {[%emt 0:01:51]} 5. Bg2 {[%emt 0:01:20]} Nc6 {[%emt 0:02:53]} 6. Nf3 {[%emt 0:01:50]} O-O {[%emt 0:03:59]} 7. O-O {[%emt 0:00:08]} Re8 {[%emt 0:01:48]} 8. Bg5 {[%emt 0:04:16]} Bf8 {[%emt 0:03:34]} 9. Nc3 {[%emt 0:01:40]} h6 {[%emt 0:00:17]} 10. Bf4 {[%emt 0:02:57]} d6 {[%emt 0:01:38]} 11. e4 {[%emt 0:02:00]} Qe7 {[%emt 0:05:30]} 12. e5 {[%emt 0:05:39]} dxe5 {[%emt 0:01:00]} 13. dxe5 {[%emt 0:02:43]} Nd7 {[%emt 0:00:12]} 14. h4 {[%emt 0:01:22]} Qc5 {[%emt 0:04:20]} 15. Qe2 {[%emt 0:02:56]} Nd4 {[%emt 0:02:09]} 16. Nxd4 {[%emt 0:03:43]} Qxd4 {[%emt 0:00:06]} 17. Rad1 {[%emt 0:00:10]} Qa7 {[%emt 0:02:36]} 18. h5 {[%emt 0:08:13]} a4 {[%emt 0:03:49]} 19. Be4 {[%emt 0:09:03]} Bb4 {[%emt 0:01:37]} 20. Nb5 {[%emt 0:20:34]} Qa5 {[%emt 0:01:06]} 21. a3 {[%emt 0:00:19]} Bc5 {[%emt 0:00:46]} 22. Bc2 {[%emt 0:01:12]} Nf8 {[%emt 0:01:06]} 23. Bxh6 {[%emt 0:08:12]} Nd7 {[%emt 0:13:51]} 24. Qg4 {[%emt 0:04:30]} Bf8 {[%emt 0:00:15]} 25. Bxg7 {[%emt 0:00:16]} Bxg7 {[%emt 0:03:36]} 26. h6 {[%emt 0:00:05]} 1-0

[Event "Krakow Championship-B 2022"]
[Site "Krakow"]
[Date "2022.06.29"]
[Round "6.5"]
[White "Duncan, Patrick C M"]
[Black "Budkiewicz, Magdalena"]
[Result "1-0"]
[ECO "A01"]
[WhiteElo "2013"]
[BlackElo "1916"]
[Annotator "NA RC"]
[PlyCount "39"]
[EventDate "2022.06.25"]
[EventType "swiss"]
[EventCountry "POL"]
[SourceTitle "playchess.com"]
[Source "ChessBase"]
[SourceQuality "1"]
[TimeControl "40/5400+30:1800+30"]

1. b3 {[%emt 0:00:08]} e5 {[%emt 0:00:20]} 2. Bb2 {[%emt 0:00:09]} Nc6 {[%emt 0:00:08]} 3. e3 {[%emt 0:00:05]} d5 {[%emt 0:00:33]} 4. Bb5 {[%emt 0:00:17]} Bd6 {[%emt 0:00:32]} 5. f4 {[%emt 0:00:28]} Qe7 {[%emt 0:05:49]} 6. Nf3 {[%emt 0:00:37]} Bg4 {[%emt 0:08:15]} 7. O-O {[%emt 0:00:58]} f6 {[%emt 0:09:21]} 8. h3 {[%emt 0:04:00]} Bh5 {[%emt 0:09:22]} 9. c4 {[%emt 0:00:32]} dxc4 {[%emt 0:07:06]} 10. fxe5 {[%emt 0:01:16]} fxe5 {[%emt 0:01:27]} 11. Bxc6+ {[%emt 0:02:43]} bxc6 {[%emt 0:00:20]} 12. Qc2 {[%emt 0:01:35]} Bf7 {[%emt 0:14:43]} 13. bxc4 {[%emt 0:10:26]} Nf6 {[%emt 0:04:30]} 14. c5 {[%emt 0:12:42]} Bxc5 {[%emt 0:01:50]} 15. d4 {[%emt 0:10:23]} exd4 {[%emt 0:03:34]} 16. exd4 {[%emt 0:00:28]} O-O {[%emt 0:00:12]} 17. Re1 {[%emt 0:06:16]} Bxd4+ {[%emt 0:03:04]} 18. Bxd4 {[%emt 0:00:21]} Qd7 {[%emt 0:02:35]} 19. Bxf6 {[%emt 0:03:50]} gxf6 {[%emt 0:00:25]} 20. Nbd2 {[%emt 0:00:59]} 1-0